[Event "*** Titled Tuesday Blitz"]
[Site "Chess.com"]
[Date "2021.02.02"]
[Round "5"]
[White "Firegrizzly"]
[Black "Zmof"]
[Result "1-0"]
[WhiteElo "2591"]
[BlackElo "2122"]
[TimeControl "180+1"]
[EndTime "10:59:54 PST"]
[Termination "Firegrizzly won on time"]

1. d4 {[%clk 0:02:55.7]} 1... Nf6 {[%clk 0:02:56.5]} 2. Nf3 {[%clk 0:02:56.6]}
2... e6 {[%clk 0:02:52.7]} 3. Bg5 {[%clk 0:02:55.2]} 3... Be7 {[%clk 0:02:49.3]}
4. Nbd2 {[%clk 0:02:51.6]} 4... d5 {[%clk 0:02:48.1]} 5. Bxf6 {[%clk 0:02:47.9]}
5... Bxf6 {[%clk 0:02:47.6]} 6. e4 {[%clk 0:02:48.8]} 6... dxe4 {[%clk
0:02:39.5]} 7. Nxe4 {[%clk 0:02:49.7]} 7... b6 {[%clk 0:02:37.4]} 8. Bd3 {[%clk
0:02:46.5]} 8... Bb7 {[%clk 0:02:36.2]} 9. Qd2 {[%clk 0:02:43.1]} 9... Nd7
{[%clk 0:02:33.8]} 10. O-O-O {[%clk 0:02:40.5]} 10... Qe7 {[%clk 0:02:27.3]} 11.
h4 {[%clk 0:02:39.2]} 11... O-O-O {[%clk 0:02:25.2]} 12. Qe2 {[%clk 0:02:39.3]}
12... Kb8 {[%clk 0:02:24.2]} 13. g4 {[%clk 0:02:33.5]} 13... g6 {[%clk
0:02:11.4]} 14. g5 {[%clk 0:02:33.7]} 14... Bg7 {[%clk 0:02:11]} 15. h5 {[%clk
0:02:30.7]} 15... Rhg8 {[%clk 0:02:02.2]} 16. Ba6 {[%clk 0:02:22.4]} 16... c5
{[%clk 0:02:01.1]} 17. Bxb7 {[%clk 0:02:21.7]} 17... Kxb7 {[%clk 0:02:00.9]} 18.
hxg6 {[%clk 0:02:17.3]} 18... hxg6 {[%clk 0:02:00.2]} 19. d5 {[%clk 0:02:06.4]}
19... exd5 {[%clk 0:01:54.9]} 20. Rxd5 {[%clk 0:02:06.3]} 20... Ne5 {[%clk
0:01:46.4]} 21. Rhd1 {[%clk 0:01:36.2]} 21... Rxd5 {[%clk 0:01:25.8]} 22. Rxd5
{[%clk 0:01:37.1]} 22... Nxf3 {[%clk 0:01:08.9]} 23. Qxf3 {[%clk 0:01:36.3]}
23... Kb8 {[%clk 0:01:02.4]} 24. Qf4+ {[%clk 0:01:23.2]} 24... Qc7 {[%clk
0:00:58.6]} 25. Qd2 {[%clk 0:01:16.9]} 25... Re8 {[%clk 0:00:52.1]} 26. f3
{[%clk 0:01:11.6]} 26... Rh8 {[%clk 0:00:49]} 27. Nf2 {[%clk 0:00:48.7]} 27...
Bd4 {[%clk 0:00:46.8]} 28. Nd1 {[%clk 0:00:46.5]} 28... Qc6 {[%clk 0:00:42.5]}
29. Qf4+ {[%clk 0:00:45.5]} 29... Qc7 {[%clk 0:00:39.1]} 30. Qe4 {[%clk
0:00:39.3]} 30... Rd8 {[%clk 0:00:31.7]} 31. Rxd8+ {[%clk 0:00:36.6]} 31... Qxd8
{[%clk 0:00:31.9]} 32. c3 {[%clk 0:00:37.5]} 32... Bg7 {[%clk 0:00:31.1]} 33. f4
{[%clk 0:00:33]} 33... Qd7 {[%clk 0:00:28.1]} 34. Ne3 {[%clk 0:00:32.5]} 34...
a6 {[%clk 0:00:23.8]} 35. Nd5 {[%clk 0:00:32.3]} 35... Ka7 {[%clk 0:00:23.2]}
36. Kc2 {[%clk 0:00:29.9]} 36... Bf8 {[%clk 0:00:17.3]} 37. a4 {[%clk
0:00:29.5]} 37... Bd6 {[%clk 0:00:17]} 38. Kd3 {[%clk 0:00:25.7]} 38... Qf5
{[%clk 0:00:16.6]} 39. Qxf5 {[%clk 0:00:24.4]} 39... gxf5 {[%clk 0:00:16.1]} 40.
Ke3 {[%clk 0:00:24.4]} 40... Kb7 {[%clk 0:00:16.4]} 41. Kf3 {[%clk 0:00:24.5]}
41... Kc6 {[%clk 0:00:16.7]} 42. Ne3 {[%clk 0:00:25.1]} 42... b5 {[%clk
0:00:14.7]} 43. axb5+ {[%clk 0:00:24.2]} 43... Kxb5 {[%clk 0:00:14.9]} 44. Nxf5
{[%clk 0:00:25.1]} 44... Bf8 {[%clk 0:00:14.7]} 45. Ne3 {[%clk 0:00:19.9]} 45...
Ka4 {[%clk 0:00:14.9]} 46. Nc4 {[%clk 0:00:14.6]} 46... Kb3 {[%clk 0:00:14]} 47.
Ne5 {[%clk 0:00:15.5]} 47... Kxb2 {[%clk 0:00:14]} 48. Nxf7 {[%clk 0:00:14.5]}
48... a5 {[%clk 0:00:14.3]} 49. f5 {[%clk 0:00:13.9]} 49... a4 {[%clk
0:00:14.2]} 50. Ne5 {[%clk 0:00:14]} 50... Kb3 {[%clk 0:00:10.9]} 51. f6 {[%clk
0:00:12.1]} 51... a3 {[%clk 0:00:10.6]} 52. g6 {[%clk 0:00:12.7]} 52... a2
{[%clk 0:00:09.5]} 53. g7 {[%clk 0:00:13.6]} 53... Bxg7 {[%clk 0:00:07.5]} 54.
fxg7 {[%clk 0:00:14.5]} 54... a1=Q {[%clk 0:00:07.9]} 55. g8=Q+ {[%clk
0:00:14.5]} 55... Kxc3 {[%clk 0:00:06.8]} 56. Qc4+ {[%clk 0:00:15]} 56... Kd2
{[%clk 0:00:04.8]} 57. Qd3+ {[%clk 0:00:14.3]} 57... Kc1 {[%clk 0:00:04]} 58.
Qf1+ {[%clk 0:00:12.8]} 58... Kb2 {[%clk 0:00:03.7]} 59. Nc4+ {[%clk 0:00:13.2]}
59... Ka2 {[%clk 0:00:03.7]} 60. Qe2+ {[%clk 0:00:13.2]} 60... Kb3 {[%clk
0:00:03.3]} 61. Nd2+ {[%clk 0:00:12.2]} 1-0

[Event "*** Titled Tuesday Blitz"]
[Site "Chess.com"]
[Date "2021.02.02"]
[Round "5"]
[White "GiorgianBarbosa"]
[Black "NaciSAN"]
[Result "1/2-1/2"]
[WhiteElo "2490"]
[BlackElo "2304"]
[TimeControl "180+1"]
[EndTime "10:59:55 PST"]
[Termination "Game drawn by repetition"]

1. d4 {[%clk 0:03:00.9]} 1... Nf6 {[%clk 0:02:59]} 2. c4 {[%clk 0:03:00.4]} 2...
g6 {[%clk 0:02:59.6]} 3. Nc3 {[%clk 0:02:59.4]} 3... Bg7 {[%clk 0:03:00.3]} 4.
g3 {[%clk 0:02:59.6]} 4... O-O {[%clk 0:02:59.7]} 5. Bg2 {[%clk 0:03:00.2]} 5...
d6 {[%clk 0:03:00.3]} 6. Nf3 {[%clk 0:03:00.7]} 6... Nc6 {[%clk 0:03:00.7]} 7.
O-O {[%clk 0:03:01.2]} 7... Bf5 {[%clk 0:03:01.2]} 8. b3 {[%clk 0:02:53.8]} 8...
Ne4 {[%clk 0:03:00.8]} 9. Bb2 {[%clk 0:02:53.8]} 9... Nxc3 {[%clk 0:03:00.7]}
10. Bxc3 {[%clk 0:02:54.7]} 10... Be4 {[%clk 0:03:01]} 11. Rc1 {[%clk
0:02:49.7]} 11... d5 {[%clk 0:02:59.9]} 12. cxd5 {[%clk 0:02:46.6]} 12... Qxd5
{[%clk 0:02:57.3]} 13. e3 {[%clk 0:02:30.4]} 13... Rac8 {[%clk 0:02:46.8]} 14.
Ne1 {[%clk 0:02:26.9]} 14... Bxg2 {[%clk 0:02:46.1]} 15. Nxg2 {[%clk 0:02:27.8]}
15... a5 {[%clk 0:02:45.8]} 16. Nf4 {[%clk 0:02:27]} 16... Qd7 {[%clk
0:02:45.1]} 17. d5 {[%clk 0:02:21.2]} 17... Ne5 {[%clk 0:02:44.2]} 18. Bxa5
{[%clk 0:01:58.9]} 18... Rfd8 {[%clk 0:02:17.4]} 19. e4 {[%clk 0:01:55]} 19...
b6 {[%clk 0:02:06.5]} 20. Bc3 {[%clk 0:01:50.5]} 20... c6 {[%clk 0:02:04.5]} 21.
Bxe5 {[%clk 0:01:41.7]} 21... Bxe5 {[%clk 0:02:04]} 22. dxc6 {[%clk 0:01:37.8]}
22... Qxd1 {[%clk 0:02:03.8]} 23. Rfxd1 {[%clk 0:01:33.2]} 23... Rxd1+ {[%clk
0:02:04]} 24. Rxd1 {[%clk 0:01:34.1]} 24... Bxf4 {[%clk 0:02:04]} 25. gxf4
{[%clk 0:01:34.4]} 25... Rxc6 {[%clk 0:02:04.2]} 26. Ra1 {[%clk 0:01:17.3]}
26... Rf6 {[%clk 0:01:52.8]} 27. Kg2 {[%clk 0:01:10.7]} 27... Rxf4 {[%clk
0:01:50.9]} 28. f3 {[%clk 0:01:11.2]} 28... f5 {[%clk 0:01:45.9]} 29. Kg3 {[%clk
0:01:03]} 29... g5 {[%clk 0:01:45.9]} 30. exf5 {[%clk 0:01:01.8]} 30... Rxf5
{[%clk 0:01:45.4]} 31. a4 {[%clk 0:01:01.5]} 31... Rf4 {[%clk 0:01:37.9]} 32.
Re1 {[%clk 0:00:53.5]} 32... Kf7 {[%clk 0:01:38]} 33. Re4 {[%clk 0:00:52.8]}
33... Rxe4 {[%clk 0:01:32.5]} 34. fxe4 {[%clk 0:00:53.7]} 34... h5 {[%clk
0:01:32.9]} 35. Kf3 {[%clk 0:00:46.8]} 35... Ke6 {[%clk 0:01:26.6]} 36. b4
{[%clk 0:00:42.7]} 36... Kd7 {[%clk 0:01:26.8]} 37. e5 {[%clk 0:00:35.4]} 37...
e6 {[%clk 0:01:22.3]} 38. Ke4 {[%clk 0:00:34.8]} 38... Kc6 {[%clk 0:01:20.8]}
39. Kd4 {[%clk 0:00:32.8]} 39... Kb7 {[%clk 0:01:20]} 40. Kc4 {[%clk 0:00:25.4]}
40... Kc6 {[%clk 0:01:06.5]} 41. Kd4 {[%clk 0:00:24.6]} 41... Kc7 {[%clk
0:01:01.4]} 42. h3 {[%clk 0:00:12.5]} 42... Kb7 {[%clk 0:00:55.7]} 43. b5 {[%clk
0:00:11.3]} 43... Kc7 {[%clk 0:00:51.9]} 44. Ke4 {[%clk 0:00:11.5]} 44... Kb7
{[%clk 0:00:50.7]} 45. Kf3 {[%clk 0:00:11.4]} 45... Kc7 {[%clk 0:00:49]} 46. Kg3
{[%clk 0:00:12.3]} 46... Kb7 {[%clk 0:00:49.1]} 47. Kg2 {[%clk 0:00:12.5]} 47...
Kc7 {[%clk 0:00:49.1]} 48. Kg1 {[%clk 0:00:13.4]} 48... Kb7 {[%clk 0:00:49.2]}
49. Kh2 {[%clk 0:00:14.3]} 49... Kc7 {[%clk 0:00:49.3]} 50. Kh1 {[%clk
0:00:15.2]} 50... Kd7 {[%clk 0:00:48.7]} 51. Kg1 {[%clk 0:00:16.1]} 51... Kc7
{[%clk 0:00:48]} 52. Kf2 {[%clk 0:00:15.7]} 52... Kb7 {[%clk 0:00:48.1]} 53. Ke3
{[%clk 0:00:16.3]} 53... Ka7 {[%clk 0:00:48.3]} 54. Ke4 {[%clk 0:00:16.7]} 54...
Kb7 {[%clk 0:00:48.7]} 55. Kd4 {[%clk 0:00:16.6]} 55... Kc7 {[%clk 0:00:48.8]}
56. Kd3 {[%clk 0:00:16.4]} 56... Kd7 {[%clk 0:00:49]} 57. Kd2 {[%clk 0:00:16.8]}
57... Ke7 {[%clk 0:00:47.6]} 58. Kd1 {[%clk 0:00:16.8]} 58... Kd7 {[%clk
0:00:47.6]} 59. Ke1 {[%clk 0:00:14.1]} 59... Kc7 {[%clk 0:00:47]} 60. Ke2 {[%clk
0:00:13.3]} 60... Kb7 {[%clk 0:00:47.3]} 61. Ke3 {[%clk 0:00:13.1]} 61... Ka7
{[%clk 0:00:47.7]} 62. h4 {[%clk 0:00:06.1]} 62... g4 {[%clk 0:00:47.4]} 63. Kf4
{[%clk 0:00:06.3]} 63... Kb7 {[%clk 0:00:47.6]} 64. Kg3 {[%clk 0:00:06.9]} 64...
Kc7 {[%clk 0:00:47.7]} 65. Kg2 {[%clk 0:00:07.8]} 65... Kb7 {[%clk 0:00:48.1]}
66. Kg1 {[%clk 0:00:08.4]} 66... Kc7 {[%clk 0:00:48.6]} 67. Kf1 {[%clk
0:00:09.1]} 67... Kb7 {[%clk 0:00:49.1]} 68. Kg1 {[%clk 0:00:09.9]} 68... Kc7
{[%clk 0:00:49.5]} 69. Kh1 {[%clk 0:00:10.6]} 69... Kb7 {[%clk 0:00:49.9]} 70.
Kh2 {[%clk 0:00:11.5]} 70... Kc7 {[%clk 0:00:50.4]} 71. Kg3 {[%clk 0:00:12.2]}
71... Kb7 {[%clk 0:00:50.8]} 72. Kg2 {[%clk 0:00:13.1]} 72... Kc7 {[%clk
0:00:51.3]} 73. Kf1 {[%clk 0:00:14]} 73... Kb7 {[%clk 0:00:51.8]} 74. Kg2 {[%clk
0:00:14.9]} 74... Kc7 {[%clk 0:00:52.3]} 75. Kg3 {[%clk 0:00:15.8]} 75... Kb7
{[%clk 0:00:53]} 76. Kf4 {[%clk 0:00:16.7]} 76... Kc7 {[%clk 0:00:53.2]} 77. Ke4
{[%clk 0:00:17.3]} 77... Kb7 {[%clk 0:00:53.7]} 78. Ke3 {[%clk 0:00:17.9]} 78...
Kc7 {[%clk 0:00:54.1]} 79. Ke2 {[%clk 0:00:18.8]} 79... Kb7 {[%clk 0:00:54.6]}
80. Ke1 {[%clk 0:00:19.7]} 80... Kc7 {[%clk 0:00:55.1]} 81. Kd2 {[%clk
0:00:20.1]} 81... Kb7 {[%clk 0:00:55.5]} 82. Kd1 {[%clk 0:00:20.7]} 82... Ka7
{[%clk 0:00:56]} 83. Ke2 {[%clk 0:00:21.4]} 83... Kb8 {[%clk 0:00:56.4]} 84. Kd3
{[%clk 0:00:21.6]} 84... Ka8 {[%clk 0:00:56.7]} 85. Ke4 {[%clk 0:00:22.5]} 85...
Kb7 {[%clk 0:00:57.1]} 86. Kf4 {[%clk 0:00:22.8]} 86... Ka7 {[%clk 0:00:57.3]}
87. Kg3 {[%clk 0:00:22.8]} 87... Kb7 {[%clk 0:00:57.6]} 1/2-1/2

[Event "*** Titled Tuesday Blitz"]
[Site "Chess.com"]
[Date "2021.02.02"]
[Round "5"]
[White "KRSilva"]
[Black "kobemagic"]
[Result "0-1"]
[WhiteElo "2210"]
[BlackElo "2366"]
[TimeControl "180+1"]
[EndTime "10:59:55 PST"]
[Termination "kobemagic won by resignation"]

1. Nf3 {[%clk 0:03:00.9]} 1... Nf6 {[%clk 0:02:58.8]} 2. d4 {[%clk 0:03:01.1]}
2... g6 {[%clk 0:02:59.1]} 3. Nc3 {[%clk 0:02:59.4]} 3... Bg7 {[%clk 0:02:59.6]}
4. e4 {[%clk 0:02:59.2]} 4... d6 {[%clk 0:02:59.4]} 5. Bc4 {[%clk 0:02:58.1]}
5... O-O {[%clk 0:02:58.2]} 6. O-O {[%clk 0:02:58.3]} 6... c6 {[%clk 0:02:57.7]}
7. Bg5 {[%clk 0:02:57.3]} 7... b5 {[%clk 0:02:56.8]} 8. Bd3 {[%clk 0:02:57.3]}
8... Nbd7 {[%clk 0:02:51.9]} 9. a3 {[%clk 0:02:37.5]} 9... e5 {[%clk 0:02:46]}
10. d5 {[%clk 0:02:34]} 10... cxd5 {[%clk 0:02:33.3]} 11. Nxd5 {[%clk 0:02:30]}
11... a6 {[%clk 0:02:31.3]} 12. Qd2 {[%clk 0:02:23.2]} 12... Bb7 {[%clk
0:02:28.2]} 13. Nc3 {[%clk 0:02:14.4]} 13... Nc5 {[%clk 0:02:25.2]} 14. Rad1
{[%clk 0:02:12.5]} 14... Qc7 {[%clk 0:02:00]} 15. Rfe1 {[%clk 0:02:11.4]} 15...
Rac8 {[%clk 0:01:57.6]} 16. h3 {[%clk 0:02:01.7]} 16... Ne6 {[%clk 0:01:57.1]}
17. Bh6 {[%clk 0:01:56.3]} 17... Nc5 {[%clk 0:01:40.2]} 18. Nh4 {[%clk
0:01:32.4]} 18... Nxd3 {[%clk 0:01:23]} 19. cxd3 {[%clk 0:01:29.1]} 19... Qd8
{[%clk 0:01:05.9]} 20. Nf5 {[%clk 0:01:16]} 20... gxf5 {[%clk 0:01:02.2]} 21.
exf5 {[%clk 0:01:06.4]} 21... Bxh6 {[%clk 0:00:55.8]} 22. Qxh6 {[%clk
0:01:06.7]} 22... Ne8 {[%clk 0:00:56.1]} 23. Ne4 {[%clk 0:00:58.3]} 23... f6
{[%clk 0:00:30.9]} 24. Re3 {[%clk 0:00:53.2]} 24... Rc7 {[%clk 0:00:24.5]} 25.
Rg3+ {[%clk 0:00:45.9]} 25... Rg7 {[%clk 0:00:24]} 26. Re1 {[%clk 0:00:27.7]}
26... Bxe4 {[%clk 0:00:22.8]} 27. Rxe4 {[%clk 0:00:23.6]} 27... Rf7 {[%clk
0:00:22.7]} 28. Rh4 {[%clk 0:00:15.6]} 28... Rxg3 {[%clk 0:00:20.8]} 29. fxg3
{[%clk 0:00:16.5]} 29... Rg7 {[%clk 0:00:19.1]} 30. g4 {[%clk 0:00:15.7]} 30...
Qb6+ {[%clk 0:00:16.7]} 31. Kh2 {[%clk 0:00:15.4]} 31... Qf2 {[%clk 0:00:16]}
32. g5 {[%clk 0:00:13.2]} 32... fxg5 {[%clk 0:00:13.5]} 33. Rg4 {[%clk
0:00:11.2]} 33... Qxf5 {[%clk 0:00:12.8]} 34. Qh5 {[%clk 0:00:11.5]} 34... Nf6
{[%clk 0:00:12.2]} 35. Qh6 {[%clk 0:00:10.8]} 35... Qg6 {[%clk 0:00:12.1]} 36.
Qxg6 {[%clk 0:00:09.5]} 36... hxg6 {[%clk 0:00:13]} 37. Rg3 {[%clk 0:00:10.2]}
37... g4 {[%clk 0:00:11]} 38. hxg4 {[%clk 0:00:10.2]} 38... g5 {[%clk
0:00:11.5]} 39. Kg1 {[%clk 0:00:09.1]} 39... Rc7 {[%clk 0:00:11.1]} 40. Kf2
{[%clk 0:00:08.8]} 40... Rc2+ {[%clk 0:00:10.8]} 41. Ke3 {[%clk 0:00:09.3]}
41... Kf7 {[%clk 0:00:10.5]} 42. Rf3 {[%clk 0:00:09]} 42... Ke6 {[%clk
0:00:11.1]} 43. Rf5 {[%clk 0:00:09]} 43... d5 {[%clk 0:00:10.8]} 44. Rxg5 {[%clk
0:00:09.1]} 44... d4+ {[%clk 0:00:11.4]} 45. Kf3 {[%clk 0:00:08.9]} 45... Rxb2
{[%clk 0:00:12]} 46. Rg6 {[%clk 0:00:09.4]} 46... Kf7 {[%clk 0:00:11.2]} 47. Rh6
{[%clk 0:00:09.7]} 47... Rd2 {[%clk 0:00:09.7]} 48. g5 {[%clk 0:00:09.1]} 48...
Ng8 {[%clk 0:00:08.8]} 49. Rxa6 {[%clk 0:00:06.7]} 49... Rxd3+ {[%clk
0:00:09.2]} 50. Ke4 {[%clk 0:00:07.2]} 50... Re3+ {[%clk 0:00:09.5]} 51. Kf5
{[%clk 0:00:06.6]} 51... Ne7+ {[%clk 0:00:10.1]} 52. Kg4 {[%clk 0:00:06.4]}
52... d3 {[%clk 0:00:09]} 53. Kh5 {[%clk 0:00:04.9]} 53... Re4 {[%clk
0:00:08.2]} 54. g6+ {[%clk 0:00:05.8]} 54... Nxg6 {[%clk 0:00:07.5]} 55. Rxg6
{[%clk 0:00:04.6]} 55... d2 {[%clk 0:00:07.6]} 56. Rd6 {[%clk 0:00:04.4]} 56...
Rd4 {[%clk 0:00:07.8]} 0-1

[Event "*** Titled Tuesday Blitz"]
[Site "Chess.com"]
[Date "2021.02.02"]
[Round "5"]
[White "mikolka1985"]
[Black "alexrustemov"]
[Result "0-1"]
[WhiteElo "2565"]
[BlackElo "2768"]
[TimeControl "180+1"]
[EndTime "10:59:56 PST"]
[Termination "alexrustemov won on time"]

1. d4 {[%clk 0:03:00.9]} 1... d5 {[%clk 0:02:56.5]} 2. c4 {[%clk 0:03:00.1]}
2... c6 {[%clk 0:02:56.3]} 3. Nc3 {[%clk 0:02:59.1]} 3... dxc4 {[%clk
0:02:55.5]} 4. e3 {[%clk 0:02:56.5]} 4... b5 {[%clk 0:02:54.1]} 5. a4 {[%clk
0:02:55.7]} 5... b4 {[%clk 0:02:52.6]} 6. Nb1 {[%clk 0:02:51.2]} 6... Qd5 {[%clk
0:02:46.5]} 7. Qc2 {[%clk 0:02:17.5]} 7... Ba6 {[%clk 0:02:45.7]} 8. Nd2 {[%clk
0:02:16.6]} 8... c3 {[%clk 0:02:44.1]} 9. bxc3 {[%clk 0:02:16]} 9... Bxf1 {[%clk
0:02:32.7]} 10. Kxf1 {[%clk 0:02:15.5]} 10... bxc3 {[%clk 0:02:33.2]} 11. Qxc3
{[%clk 0:02:15.1]} 11... Nf6 {[%clk 0:02:30.2]} 12. Ba3 {[%clk 0:02:10.7]} 12...
Nbd7 {[%clk 0:02:21.2]} 13. Ngf3 {[%clk 0:02:06.6]} 13... Rc8 {[%clk 0:02:09.1]}
14. Qc2 {[%clk 0:02:01.8]} 14... e6 {[%clk 0:02:03.2]} 15. e4 {[%clk 0:01:59.8]}
15... Qa5 {[%clk 0:02:01]} 16. Bxf8 {[%clk 0:01:59]} 16... Kxf8 {[%clk
0:02:01.1]} 17. Nc4 {[%clk 0:01:56.2]} 17... Qa6 {[%clk 0:01:59.4]} 18. e5
{[%clk 0:01:46.9]} 18... Nd5 {[%clk 0:01:55.6]} 19. Kg1 {[%clk 0:01:46.3]} 19...
h6 {[%clk 0:01:37.3]} 20. Nd6 {[%clk 0:01:45.1]} 20... Rb8 {[%clk 0:01:37]} 21.
h3 {[%clk 0:01:39.9]} 21... g6 {[%clk 0:01:35.7]} 22. Kh2 {[%clk 0:01:39.4]}
22... Kg7 {[%clk 0:01:36.2]} 23. Rhc1 {[%clk 0:01:38.7]} 23... Nb4 {[%clk
0:01:31.3]} 24. Qd2 {[%clk 0:01:32.5]} 24... Qd3 {[%clk 0:01:26.2]} 25. a5
{[%clk 0:01:23.2]} 25... Qxd2 {[%clk 0:01:20.3]} 26. Nxd2 {[%clk 0:01:22.8]}
26... c5 {[%clk 0:01:20.9]} 27. dxc5 {[%clk 0:00:39.1]} 27... Nxe5 {[%clk
0:01:20.3]} 28. a6 {[%clk 0:00:34.8]} 28... Nbc6 {[%clk 0:01:14.9]} 29. N2e4
{[%clk 0:00:33]} 29... Rb2 {[%clk 0:01:11.8]} 30. Rab1 {[%clk 0:00:26.6]} 30...
Rhb8 {[%clk 0:01:12.3]} 31. Nb7 {[%clk 0:00:26]} 31... Ra2 {[%clk 0:01:10.2]}
32. Ra1 {[%clk 0:00:25.3]} 32... Re2 {[%clk 0:01:04.8]} 33. Re1 {[%clk
0:00:24.3]} 33... Rxe1 {[%clk 0:01:00.1]} 34. Rxe1 {[%clk 0:00:23.7]} 34... Nb4
{[%clk 0:01:00.7]} 35. f4 {[%clk 0:00:20.5]} 35... Nec6 {[%clk 0:00:54.5]} 36.
Ra1 {[%clk 0:00:17.8]} 36... f5 {[%clk 0:00:46.8]} 37. Ned6 {[%clk 0:00:17.2]}
37... g5 {[%clk 0:00:46.6]} 38. fxg5 {[%clk 0:00:16.5]} 38... hxg5 {[%clk
0:00:47.5]} 39. Ra4 {[%clk 0:00:13.5]} 39... Kf6 {[%clk 0:00:47.6]} 40. Ra1
{[%clk 0:00:12.7]} 40... Nd3 {[%clk 0:00:45.5]} 41. Rd1 {[%clk 0:00:11]} 41...
Ndb4 {[%clk 0:00:43.5]} 42. Rb1 {[%clk 0:00:10.4]} 42... e5 {[%clk 0:00:44]} 43.
Ra1 {[%clk 0:00:10.2]} 43... e4 {[%clk 0:00:43.6]} 44. Kg1 {[%clk 0:00:10.3]}
44... Ke5 {[%clk 0:00:42.1]} 45. Na5 {[%clk 0:00:08.8]} 45... Nxa5 {[%clk
0:00:35.3]} 46. Rxa5 {[%clk 0:00:08.1]} 46... Nc6 {[%clk 0:00:35.9]} 47. Ra4
{[%clk 0:00:07.2]} 47... Rb1+ {[%clk 0:00:34]} 48. Kf2 {[%clk 0:00:06.1]} 48...
Rb2+ {[%clk 0:00:32.6]} 49. Kf1 {[%clk 0:00:06.2]} 49... Rc2 {[%clk 0:00:28.2]}
50. Nc4+ {[%clk 0:00:04.7]} 50... Ke6 {[%clk 0:00:26.4]} 51. Nd6 {[%clk
0:00:05.6]} 51... Rxc5 {[%clk 0:00:25]} 52. Nc4 {[%clk 0:00:05.5]} 52... f4
{[%clk 0:00:24.4]} 53. Nd2 {[%clk 0:00:05.3]} 53... e3 {[%clk 0:00:23.7]} 54.
Nf3 {[%clk 0:00:05.5]} 54... Rc1+ {[%clk 0:00:23.6]} 55. Ke2 {[%clk 0:00:05.1]}
55... Rc2+ {[%clk 0:00:23.1]} 56. Kf1 {[%clk 0:00:04.8]} 56... Kf5 {[%clk
0:00:22.5]} 57. Ra5+ {[%clk 0:00:04.4]} 57... Kf6 {[%clk 0:00:21.8]} 58. Rxg5
{[%clk 0:00:03.6]} 58... Rc1+ {[%clk 0:00:18.9]} 59. Ke2 {[%clk 0:00:03.2]}
59... Nd4+ {[%clk 0:00:19.5]} 60. Nxd4 {[%clk 0:00:01.4]} 60... Kxg5 {[%clk
0:00:19.3]} 61. Ne6+ {[%clk 0:00:01.4]} 61... Kf5 {[%clk 0:00:19]} 62. Nd4+
{[%clk 0:00:01.5]} 62... Ke4 {[%clk 0:00:19.2]} 0-1

[Event "*** Titled Tuesday Blitz"]
[Site "Chess.com"]
[Date "2021.02.02"]
[Round "5"]
[White "PotapovaM"]
[Black "banane_verte"]
[Result "1-0"]
[WhiteElo "2644"]
[BlackElo "2443"]
[TimeControl "180+1"]
[EndTime "10:59:56 PST"]
[Termination "PotapovaM won by resignation"]

1. d4 {[%clk 0:02:53.2]} 1... Nf6 {[%clk 0:02:59.9]} 2. c4 {[%clk 0:02:52.8]}
2... e6 {[%clk 0:02:59.9]} 3. Nc3 {[%clk 0:02:53.4]} 3... Bb4 {[%clk 0:02:59.8]}
4. Qc2 {[%clk 0:02:53.8]} 4... d5 {[%clk 0:02:52.1]} 5. cxd5 {[%clk 0:02:53.3]}
5... exd5 {[%clk 0:02:53]} 6. Bg5 {[%clk 0:02:52.7]} 6... h6 {[%clk 0:02:53.6]}
7. Bh4 {[%clk 0:02:52.2]} 7... c5 {[%clk 0:02:52.9]} 8. dxc5 {[%clk 0:02:40.2]}
8... g5 {[%clk 0:02:47.9]} 9. Bg3 {[%clk 0:02:39.6]} 9... Ne4 {[%clk 0:02:48.5]}
10. Bxb8 {[%clk 0:02:37.2]} 10... Rxb8 {[%clk 0:02:45.5]} 11. e3 {[%clk
0:02:31.6]} 11... Qa5 {[%clk 0:02:37.5]} 12. Rc1 {[%clk 0:02:26.9]} 12... Bf5
{[%clk 0:02:37.3]} 13. Bd3 {[%clk 0:02:12.1]} 13... Nxc3 {[%clk 0:01:48.3]} 14.
bxc3 {[%clk 0:02:07.3]} 14... Bxd3 {[%clk 0:01:47.6]} 15. Qxd3 {[%clk 0:02:07]}
15... Qxc5 {[%clk 0:01:43.7]} 16. Ne2 {[%clk 0:02:03.8]} 16... Ba3 {[%clk
0:01:41.8]} 17. Rd1 {[%clk 0:02:01.1]} 17... O-O {[%clk 0:01:36.3]} 18. h4
{[%clk 0:01:55.6]} 18... Qc4 {[%clk 0:01:28.9]} 19. hxg5 {[%clk 0:01:47.8]}
19... Qxd3 {[%clk 0:01:27.8]} 20. Rxd3 {[%clk 0:01:48.7]} 20... hxg5 {[%clk
0:01:28.6]} 21. Rxd5 {[%clk 0:01:49.1]} 21... f6 {[%clk 0:01:25.3]} 22. Rd7
{[%clk 0:01:43.2]} 22... Rf7 {[%clk 0:01:22.5]} 23. Rxf7 {[%clk 0:01:30.4]}
23... Kxf7 {[%clk 0:01:23.4]} 24. Rh7+ {[%clk 0:01:30.8]} 24... Kg6 {[%clk
0:01:23.4]} 25. Rd7 {[%clk 0:01:29.9]} 25... Bc5 {[%clk 0:01:14.7]} 26. g4
{[%clk 0:01:27.8]} 26... Re8 {[%clk 0:00:56.5]} 27. Ng3 {[%clk 0:01:23.2]} 27...
Re7 {[%clk 0:00:54.9]} 28. Rd8 {[%clk 0:01:05.2]} 28... Kf7 {[%clk 0:00:40.1]}
29. Nf5 {[%clk 0:01:03.9]} 29... Rc7 {[%clk 0:00:40.1]} 30. Ke2 {[%clk
0:00:55.7]} 30... Be7 {[%clk 0:00:36.9]} 31. Rh8 {[%clk 0:00:54.8]} 31... Ke6
{[%clk 0:00:32.4]} 32. Re8 {[%clk 0:00:53.4]} 32... Kf7 {[%clk 0:00:31.1]} 33.
Rxe7+ {[%clk 0:00:50]} 33... Rxe7 {[%clk 0:00:32]} 34. Nxe7 {[%clk 0:00:50.7]}
34... Kxe7 {[%clk 0:00:32.9]} 35. Kd3 {[%clk 0:00:51.3]} 35... Kd6 {[%clk
0:00:24.5]} 36. Ke4 {[%clk 0:00:49.9]} 36... Ke6 {[%clk 0:00:24.8]} 37. a4
{[%clk 0:00:43.8]} 37... b6 {[%clk 0:00:20.4]} 38. f4 {[%clk 0:00:30.8]} 38...
a6 {[%clk 0:00:13.3]} 39. Kd4 {[%clk 0:00:28.7]} 39... Kd6 {[%clk 0:00:12.1]}
40. f5 {[%clk 0:00:19.3]} 40... Kc6 {[%clk 0:00:10.4]} 41. e4 {[%clk 0:00:16.3]}
41... Kd6 {[%clk 0:00:10.5]} 42. e5+ {[%clk 0:00:10.6]} 42... fxe5+ {[%clk
0:00:09.5]} 43. Ke4 {[%clk 0:00:11.1]} 43... a5 {[%clk 0:00:02]} 44. c4 {[%clk
0:00:10]} 44... Kc5 {[%clk 0:00:01.7]} 45. Kxe5 {[%clk 0:00:10.2]} 45... Kxc4
{[%clk 0:00:02.6]} 46. f6 {[%clk 0:00:10.9]} 46... b5 {[%clk 0:00:02.5]} 47. f7
{[%clk 0:00:09.7]} 47... bxa4 {[%clk 0:00:01.2]} 48. f8=Q {[%clk 0:00:10.3]}
48... Kb3 {[%clk 0:00:02.1]} 49. Qf1 {[%clk 0:00:10.5]} 49... a3 {[%clk
0:00:01.8]} 50. Qa1 {[%clk 0:00:10.4]} 50... a2 {[%clk 0:00:01.7]} 51. Kf5
{[%clk 0:00:10.6]} 51... a4 {[%clk 0:00:02.6]} 52. Kxg5 {[%clk 0:00:10.9]} 52...
a3 {[%clk 0:00:03.5]} 53. Kf5 {[%clk 0:00:11.2]} 53... Ka4 {[%clk 0:00:04.1]}
54. Qxa2 {[%clk 0:00:10.8]} 54... Kb4 {[%clk 0:00:04.5]} 55. g5 {[%clk 0:00:11]}
55... Ka4 {[%clk 0:00:05]} 56. g6 {[%clk 0:00:11.4]} 56... Kb4 {[%clk
0:00:05.9]} 57. g7 {[%clk 0:00:11.6]} 57... Ka4 {[%clk 0:00:06.8]} 58. g8=Q
{[%clk 0:00:11.1]} 58... Kb4 {[%clk 0:00:07.7]} 59. Qgb3+ {[%clk 0:00:11.2]}
59... Kc5 {[%clk 0:00:07.9]} 60. Qaxa3+ {[%clk 0:00:11.7]} 1-0